fUSD/lending_fUSD_20251130
["ID","MTS","AMOUNT","RATE_DAILY","PERIOD"]
[395134452,1764465039788,-524.31842454,0.00014533,2]
[395134453,1764465039797,-1121.45836207,0.00014641,2]
[395134454,1764465039806,-500.0,0.00014664,2]
[395134455,1764465039815,-550.44152871,0.00014664,2]
[395134456,1764465039824,-500.0,0.00014664,2]
[395134457,1764465039833,-500.0,0.00014664,2]
[395134458,1764465039842,-27349.29947121,0.00014708,2]
[395134459,1764465039851,-500.0,0.00014801,2]
[395134460,1764465039860,-500.0,0.00014801,2]
[395134461,1764465039869,-500.0,0.00014801,2]
[395134462,1764465039879,-500.0,0.00014861,2]
[395134463,1764465039889,-500.0,0.00014861,2]
[395134464,1764465039899,-225.21969723,0.000149,2]
[395134465,1764465039909,-191.0,0.000149,3]
[395134466,1764465039919,-500.0,0.00014938,2]
[395134467,1764465039928,-500.0,0.00014938,2]
[395134468,1764465039938,-500.0,0.00014938,2]
[395134469,1764465039947,-255.53,0.00014958,2]
[395134470,1764465039957,-900.0,0.00015068,2]
[395134471,1764465039966,-3313.0,0.00015068,2]
[395134472,1764465039975,-151.0,0.00015069,2]
[395134473,1764465039985,-500.0,0.00015075,2]
[395134474,1764465039994,-500.0,0.00015075,2]
[395134475,1764465040004,-500.0,0.00015075,2]
[395134476,1764465040014,-524.31842454,0.00015125,2]
[395134477,1764465040023,-1252.0,0.00015145,2]
[395134478,1764465040033,-500.0,0.00015212,2]
[395134479,1764465040042,-500.0,0.00015212,2]
[395134480,1764465040051,-500.0,0.00015212,2]
[395134481,1764465040061,-1152.0,0.00015234,2]
[395134482,1764465040072,-4609.0,0.0001526,2]
[395134483,1764465040081,-150.0,0.00015288,2]
[395134484,1764465040090,-150.0,0.00015288,2]
[395134485,1764465040100,-150.0,0.00015288,2]
[395134486,1764465040110,-150.0,0.00015288,2]
[395134487,1764465040121,-150.0,0.00015288,2]
[395134488,1764465040137,-150.0,0.00015288,2]
[395134489,1764465040158,-150.0,0.00015288,2]
[395134490,1764465040177,-150.0,0.00015288,2]
[395134491,1764465040198,-150.0,0.00015288,2]
[395134492,1764465040212,-150.0,0.00015288,2]
[395134493,1764465040223,-150.0,0.00015288,2]
[395134494,1764465040233,-150.0,0.00015288,2]
[395134495,1764465040243,-500.0,0.00015349,2]
[395134496,1764465040252,-598.23367489,0.00015349,2]
[395134497,1764465040261,-500.0,0.00015349,2]
[395134498,1764465040271,-150.0,0.00015388,2]
[395134499,1764465040280,-5523.0,0.000154,5]
[395134500,1764465040292,-150.0,0.00015402,2]
[395134501,1764465040302,-150.0,0.00015409,2]
[395134502,1764465040311,-27349.29947121,0.00015439,2]
[395134504,1764465040320,-150.0,0.00015458,2]
[395134505,1764465040330,-150.0,0.00015458,2]
[395134506,1764465040339,-150.0,0.00015476,2]
[395134507,1764465040348,-500.0,0.00015486,2]
[395134508,1764465040358,-454.0,0.00015486,2]
[395134509,1764465040367,-150.0,0.00015488,2]
[395134510,1764465040376,-150.0,0.000155,2]
[395134511,1764465040385,-150.0,0.0001553,2]
[395134512,1764465040394,-210.176464,0.0001554,2]
[395134513,1764465040403,-500.0,0.0001554,2]
[395134514,1764465040413,-500.0,0.0001554,2]
[395134515,1764465040422,-500.0,0.0001554,2]
[395134516,1764465040431,-500.0,0.0001554,2]
[395134517,1764465040440,-500.0,0.0001554,2]
[395134518,1764465040449,-500.0,0.0001554,2]
[395134519,1764465040458,-500.0,0.0001554,2]
[395134520,1764465040467,-255.53,0.00015557,2]
[395134521,1764465040477,-150.0,0.00015571,2]
[395134522,1764465040486,-150.0,0.00015587,2]
[395134523,1764465040496,-189.47265618,0.00015595,2]
[395134524,1764465040505,-151.0,0.00015617,2]
[395134525,1764465040514,-542.0,0.00015623,2]
[395134526,1764465040524,-150.0,0.00015627,2]
[395134527,1764465040534,-150.0,0.00015627,2]
[395134528,1764465040543,-275.5,0.00015646,2]
[395134529,1764465040553,-150.0,0.00015652,2]
[395134530,1764465040562,-150.0,0.00015665,2]
[395134531,1764465040572,-297.66,0.00015681,2]
[395134532,1764465040584,-150.0,0.00015687,2]
[395134533,1764465040598,-150.0,0.00015712,2]
[395134534,1764465040607,-524.31842454,0.00015717,2]
[395134535,1764465040617,-150.0,0.00015773,2]
[395134536,1764465040626,-150.0,0.00015787,2]
[395134537,1764465040635,-150.0,0.00015797,2]
[395134538,1764465040645,-150.0,0.00015797,2]
[395134539,1764465040654,-150.0,0.00015854,2]
[395134540,1764465040663,-150.0,0.00015854,2]
[395134542,1764465040672,-150.0,0.00015854,2]
[395134543,1764465040681,-150.0,0.00015854,2]
[395134544,1764465040691,-150.0,0.00015887,2]
[395134545,1764465040700,-150.0,0.00015894,2]
[395134546,1764465040709,-192.6,0.00015896,2]
[395134547,1764465040719,-1143.96394614,0.000159,2]
[395134548,1764465040728,-1143.96394611,0.000159,2]
[395134549,1764465040737,-150.0,0.00015925,2]
[395134550,1764465040747,-150.0,0.00015967,2]
[395134551,1764465040757,-150.0,0.00015967,2]
[395134552,1764465040766,-500.0,0.00015972,2]
[395134553,1764465040776,-504.164248,0.00015973,2]
[395134554,1764465040786,-500.0,0.00015973,2]
[395134555,1764465040795,-165.0616945,0.00015973,2]
[395134556,1764465040804,-500.0,0.00015973,2]
[395134557,1764465040813,-176.16235425,0.00015973,2]
[395134558,1764465040823,-500.0,0.00015973,2]
[395134559,1764465040833,-500.0,0.00015973,2]
[395134560,1764465040843,-159.99691032,0.00015973,2]
[395134561,1764465040853,-160.04884112,0.00015973,2]
[395134562,1764465040863,-500.0,0.00015973,2]
[395134563,1764465040872,-168.80860309,0.00015973,2]
[395134564,1764465040881,-500.0,0.00015973,2]
[395134565,1764465040891,-500.0,0.00015973,2]
[395134566,1764465040900,-500.0,0.00015973,2]
[395134567,1764465040910,-315.71495663,0.00015973,2]
[395134568,1764465040920,-500.0,0.00015973,2]
[395134569,1764465040930,-500.0,0.00015973,2]
[395134570,1764465040939,-500.33790784,0.00015973,2]
[395134571,1764465040952,-500.0,0.00015973,2]
[395134572,1764465040961,-500.0,0.00015973,2]
[395134573,1764465040970,-500.0,0.00015973,2]
[395134574,1764465040979,-622.41255856,0.00015973,2]
[395134575,1764465040989,-500.0,0.00015973,2]
[395134576,1764465040998,-500.0,0.00015973,2]
[395134577,1764465041007,-500.0,0.00015973,2]
[395134578,1764465041017,-500.0,0.00015973,2]
[395134579,1764465041026,-500.0,0.00015973,2]
[395134580,1764465041035,-500.0,0.00015973,2]
[395134581,1764465041044,-215.65703164,0.00015973,2]
[395134582,1764465041053,-500.0,0.00015973,2]
[395134583,1764465041062,-500.0,0.00015973,2]
[395134584,1764465041071,-150.0,0.00015987,2]
[395134585,1764465041080,-150.0,0.00016016,2]
[395134586,1764465041090,-150.0,0.00016043,2]
[395134587,1764465041099,-150.0,0.00016087,2]
[395134588,1764465041108,-150.0,0.00016137,2]
[395134589,1764465041118,-150.0,0.00016137,2]
[395134590,1764465041127,-150.0,0.00016137,2]
[395134591,1764465041136,-150.0,0.00016137,2]
[395134592,1764465041145,-150.0,0.00016137,2]
[395134593,1764465041154,-255.53,0.00016155,2]
[395134594,1764465041163,-151.0,0.00016165,2]
[395134595,1764465041171,-27349.29947121,0.00016169,2]
[395134596,1764465041181,-150.0,0.00016187,2]
[395134597,1764465041190,-500.0,0.0001622,2]
[395134598,1764465041199,-500.0,0.0001622,2]
[395134599,1764465041208,-200.0,0.0001622,2]
[395134600,1764465041218,-150.0,0.00016231,2]
[395134601,1764465041227,-150.0,0.00016258,2]
[395134602,1764465041237,-150.0,0.00016287,2]
[395134603,1764465041247,-150.0,0.00016307,2]
[395134604,1764465041256,-150.0,0.00016307,2]
[395134605,1764465041266,-524.31842454,0.00016308,2]
[395134606,1764465041275,-150.0,0.00016349,2]
[395134607,1764465041284,-150.0,0.0001638,2]
[395134608,1764465041294,-150.0,0.00016387,2]
[395134609,1764465041303,-150.0,0.0001642,2]
[395134610,1764465041313,-150.0,0.0001642,2]
[395134611,1764465041321,-150.0,0.0001642,2]
[395134612,1764465041331,-150.0,0.0001642,2]
[395134613,1764465041341,-150.0,0.00016438,2]
[395134614,1764465041355,-200.0,0.00016438,2]
[395134615,1764465041364,-500.0,0.00016438,2]
[395134616,1764465041374,-500.0,0.00016438,2]
[395134617,1764465041385,-500.0,0.00016438,2]
[395134618,1764465041394,-500.0,0.00016438,2]
[395134619,1764465041403,-500.0,0.00016438,2]
[395134620,1764465041412,-500.0,0.00016438,2]
[395134621,1764465041421,-500.0,0.00016438,2]
[395134622,1764465041430,-500.0,0.00016438,2]
[395134623,1764465041440,-500.0,0.00016438,2]
[395134624,1764465041449,-500.0,0.00016438,2]
[395134625,1764465041458,-500.0,0.00016438,2]
[395134626,1764465041468,-500.0,0.00016438,2]
[395134627,1764465041477,-500.0,0.00016438,2]
[395134628,1764465041487,-500.0,0.00016438,2]
[395134629,1764465041496,-500.0,0.00016438,2]
[395134630,1764465041505,-500.0,0.00016438,2]
[395134631,1764465041515,-500.0,0.00016438,2]
[395134632,1764465041525,-500.0,0.00016438,2]
[395134633,1764465041534,-500.0,0.00016438,2]
[395134634,1764465041543,-500.0,0.00016438,2]
[395134635,1764465041553,-500.0,0.00016438,2]
[395134636,1764465041562,-500.0,0.00016438,2]
[395134637,1764465041572,-633.65206322,0.00016438,2]
[395134638,1764465041584,-500.0,0.00016438,2]
[395134639,1764465041593,-500.0,0.00016438,2]
[395134640,1764465041602,-500.0,0.00016438,2]
[395134641,1764465041612,-500.0,0.00016438,2]
[395134642,1764465041622,-500.0,0.00016438,2]
[395134643,1764465041631,-500.0,0.00016438,2]
[395134644,1764465041641,-500.0,0.00016438,2]
[395134645,1764465041651,-8303.12,0.00016438,2]
[395134646,1764465041662,-900.0,0.00016438,2]
[395134647,1764465041672,-6590.51,0.00016438,2]
[395134648,1764465041681,-800.0,0.00016438,2]
[395134649,1764465041691,-2865.551,0.0001647,2]
[395134650,1764465041700,-181.566,0.0001647,2]
[395134651,1764465041709,-150.0,0.00016477,2]
[395134652,1764465041719,-150.0,0.00016477,2]
[395134653,1764465041728,-150.0,0.00016487,2]
[395134654,1764465041737,-150.0,0.00016501,2]
[395134655,1764465041746,-1000.0,0.00016521,2]
[395134656,1764465041755,-1000.0,0.00016521,2]
[395134657,1764465041764,-1000.0,0.00016521,2]
[395134658,1764465041774,-1000.0,0.00016521,2]
[395134659,1764465041784,-1000.0,0.00016521,2]
[395134660,1764465041793,-915.8000054,0.00016521,2]
[395134661,1764465041802,-1000.0,0.00016521,2]
[395134662,1764465041811,-1000.0,0.00016521,2]
[395134663,1764465041820,-494.11980425,0.00016521,2]
[395134664,1764465041829,-1000.0,0.00016521,2]
[395134665,1764465041840,-1017.62515895,0.00016521,2]
[395134666,1764465041849,-1000.0,0.00016521,2]
[395134667,1764465041859,-957.41200441,0.00016521,2]
[395134668,1764465041869,-501.65327585,0.00016521,2]
[395134669,1764465041879,-500.0,0.00016521,2]
[395134670,1764465041888,-360.05947122,0.00016521,2]
[395134671,1764465041898,-1000.0,0.00016521,2]
[395134672,1764465041908,-500.0,0.00016521,2]
[395134673,1764465041917,-500.0,0.00016521,2]
[395134674,1764465041927,-160.08,0.00016521,2]
[395134675,1764465041938,-150.0,0.00016562,2]
[395134676,1764465041948,-297.66,0.00016572,2]
[395134677,1764465041958,-150.0,0.00016575,2]
[395134678,1764465041967,-150.0,0.00016587,2]
[395134679,1764465041977,-150.0,0.00016609,2]
[395134680,1764465041986,-150.0,0.00016622,2]
[395134681,1764465041995,-2129.0,0.00016635,2]
[395134682,1764465042004,-150.0,0.00016647,2]
[395134683,1764465042013,-150.0,0.00016647,2]
[395134684,1764465042022,-150.0,0.00016687,2]
[395134685,1764465042031,-150.0,0.00016703,2]
[395134686,1764465042041,-178.73243855,0.00016712,2]
[395134687,1764465042050,-222.61,0.00016712,2]
[395134688,1764465042059,-236.25863551,0.00016713,2]
[395134689,1764465042069,-1496.79096699,0.00016742,2]
[395134690,1764465042078,-150.0,0.00016744,2]
[395134691,1764465042087,-1613.0,0.00016751,2]
[395134692,1764465042096,-2855.4592,0.00016772,2]
[395134693,1764465042105,-150.0,0.00016774,2]
[395134694,1764465042114,-33394.88,0.00016779,2]
[395134695,1764465042123,-6453.0,0.00016786,2]
[395134696,1764465042132,-150.0,0.00016786,2]
[395134697,1764465042141,-150.0,0.00016798,2]
[395134698,1764465042150,-987.2616,0.000168,2]
[395134699,1764465042160,-222.0,0.00016812,2]
[395134700,1764465042170,-150.0,0.00016816,2]
[395134701,1764465042180,-150.0,0.00016816,2]
[395134702,1764465042190,-1305.88309,0.0001685,2]
[395134703,1764465042199,-1305.8831,0.0001685,2]
[395134704,1764465042208,-1305.8831,0.0001686,2]
[395134705,1764465042217,-1305.88309,0.0001686,2]
[395134706,1764465042227,-1305.8831,0.0001686,2]
[395134707,1764465042236,-200.0,0.00016864,2]
[395134708,1764465042245,-150.0,0.00016865,2]
[395134709,1764465042255,-1305.88309,0.0001687,2]
[395134710,1764465042264,-150.0,0.00016886,2]
[395134711,1764465042273,-500.0,0.00016899,2]
[395134712,1764465042283,-500.0,0.00016899,2]
[395134713,1764465042291,-519.26948346,0.00016899,2]
[395134714,1764465042300,-500.0,0.00016899,2]
[395134715,1764465042309,-500.0,0.00016899,2]
[395134716,1764465042318,-500.0,0.00016899,2]
[395134717,1764465042328,-10000.0,0.000169,2]
[395134718,1764465042337,-191.37909284,0.000169,2]
[395134719,1764465042347,-27349.29947121,0.000169,2]
[395134720,1764465042356,-183.5991517,0.000169,2]
[395134721,1764465042366,-1322.3360951,0.000169,2]
[395134722,1764465042375,-440.38451142,0.000169,2]
[395134723,1764465042384,-189.47265618,0.000169,2]
[395134724,1764465042393,-524.31842454,0.000169,2]
[395134725,1764465042402,-1226.0,0.00016959,2]
[395134726,1764465042411,-500.0,0.00016966,2]
[395134727,1764465042420,-500.0,0.00016972,2]
[395134729,1764465042430,-501.68270719,0.00016973,2]
[395134730,1764465042439,-366.12430531,0.00016973,2]
[395134731,1764465042448,-507.05784267,0.00016973,2]
[395134732,1764465042457,-500.0,0.00016973,2]
[395134733,1764465042466,-500.0,0.00016973,2]
[395134734,1764465042476,-500.0,0.00016973,2]
[395134735,1764465042485,-161.98179923,0.00016973,2]
[395134736,1764465042494,-500.0,0.00016973,2]
[395134737,1764465042505,-500.0,0.00016973,2]
[395134738,1764465042513,-500.0,0.00016973,2]
[395134739,1764465042522,-500.0,0.00016973,2]
[395134740,1764465042531,-500.0,0.00016973,2]
[395134742,1764465042541,-176.33851761,0.00016973,2]
[395134743,1764465042550,-500.0,0.00016973,2]
[395134744,1764465042559,-500.0,0.00016973,2]
[395134745,1764465042568,-500.0,0.00016973,2]
[395134746,1764465042578,-500.0,0.00016973,2]
[395134747,1764465042594,-500.0,0.00016973,2]
[395134748,1764465042604,-500.0,0.00016973,2]
[395134749,1764465042613,-500.0,0.00016973,2]
[395134750,1764465042623,-186.88026511,0.00016973,2]
[395134751,1764465042632,-500.0,0.00016973,2]
[395134752,1764465042642,-415.30385931,0.00016973,2]
[395134753,1764465042651,-500.0,0.00016973,2]
[395134754,1764465042660,-500.0,0.00016973,2]
[395134755,1764465042669,-167.29393494,0.00016973,2]
[395134756,1764465042679,-500.0,0.00016973,2]
[395134757,1764465042688,-500.0,0.00016973,2]
[395134758,1764465042699,-500.0,0.00016973,2]
[395134759,1764465042709,-215.63945955,0.00016973,2]
[395134760,1764465042719,-500.0,0.00016973,2]
[395134761,1764465042728,-500.0,0.00016973,2]
[395134762,1764465042741,-500.0,0.00016973,2]
[395134763,1764465042751,-500.0,0.00016973,2]
[395134764,1764465042761,-500.0,0.00016973,2]
[395134765,1764465042770,-172.25490603,0.00016973,2]
[395134766,1764465042780,-500.0,0.00016973,2]
[395134767,1764465042789,-500.0,0.00016973,2]
[395134768,1764465042799,-500.0,0.00016973,2]
[395134769,1764465042809,-217.70136136,0.0001698,2]
[395134770,1764465042818,-290.89220527,0.00016986,2]
[395134771,1764465042828,-200.0,0.00016986,2]
[395134772,1764465042838,-157.95425099,0.00016986,2]
[395134773,1764465042847,-159.50313578,0.00016986,2]
[395134774,1764465042856,-234.7761638,0.00016986,2]
[395134775,1764465042866,-150.0,0.00016986,2]
[395134776,1764465042876,-150.00000001,0.00016986,2]
[395134777,1764465042885,-150.0,0.00016986,2]
[395134778,1764465042896,-150.00000001,0.00016986,2]
[395134779,1764465042906,-239.8861884,0.00016986,2]
[395134780,1764465042918,-220.47585405,0.0001699,2]
[395134781,1764465042928,-220.47585405,0.0001699,2]
[395134782,1764465042937,-151.0,0.00016997,2]
[395134783,1764465042947,-300.0,0.00016999,2]
[395134784,1764465042958,-500.0,0.00016999,2]
[395134785,1764465042968,-500.0,0.00016999,2]
[395134786,1764465042977,-500.0,0.00016999,2]
[395134787,1764465042986,-500.0,0.00016999,2]
[395134788,1764465042994,-500.0,0.00016999,2]
[395134789,1764465043003,-500.0,0.00016999,2]
[395134790,1764465043013,-500.0,0.00016999,2]
[395134791,1764465043022,-500.0,0.00016999,2]
[395134792,1764465043031,-531.25007732,0.00016999,2]
[395134793,1764465043042,-500.0,0.00016999,2]
[395134794,1764465043051,-500.0,0.00016999,2]
[395134795,1764465043064,-550.0,0.00016999,2]
[395134796,1764465043079,-300.0,0.00016999,2]
[395134797,1764465043089,-160.38066801,0.00016999,2]
[395134798,1764465043098,-500.0,0.00016999,2]
[395134799,1764465043107,-500.0,0.00016999,2]
[395134800,1764465043116,-500.0,0.00016999,2]
[395134801,1764465043125,-300.0,0.00016999,2]
[395134802,1764465043134,-500.0,0.00016999,2]
[395134803,1764465043144,-500.0,0.00016999,2]
[395134804,1764465043153,-500.0,0.00016999,2]
[395134805,1764465043162,-500.0,0.00016999,2]
[395134806,1764465043172,-500.0,0.00016999,2]
[395134807,1764465043181,-500.0,0.00016999,2]
[395134808,1764465043190,-500.0,0.00016999,2]
[395134809,1764465043200,-500.0,0.00016999,2]
[395134811,1764465043209,-500.0,0.00016999,2]
[395134812,1764465043219,-500.0,0.00016999,2]
[395134813,1764465043229,-500.0,0.00016999,2]
[395134814,1764465043239,-416.08725444,0.00016999,2]
[395134815,1764465043249,-7001822.08841404,0.00017,2]
[395134816,1764465044558,-3920.93393307,0.00017,2]
[395134817,1764465044570,-3233.44485476,0.00017,2]
[395134819,1764465049892,-1.7e-07,0.000159,2]
[395134820,1764465049904,-1143.96394594,0.000159,2]
[395134821,1764465049913,-222.73444285,0.00017,2]
[395134822,1764465049928,-637.23775054,0.00017,2]
[395134823,1764465049940,-1882759.72987077,0.00017,2]
[395134824,1764465049954,-94502.15189399,0.00017,2]
[395134825,1764465049972,-1116.98562742,0.00017,2]
[395134826,1764465050130,-25697.65298269,0.00013879,2]
[395134827,1764465050140,-27306.319813,0.00017,2]
[395134828,1764465050654,1628.97090635,0.00012218,2]
[395134829,1764465050851,-377.81078696,0.00015,5]
[395134831,1764465075071,3803.0,0.000145,5]
[395134832,1764465085369,150.0,0.00013842,2]
[395134833,1764465085540,150.0,0.00013979,2]
[395134834,1764465085747,200.0,0.00014116,2]
[395134835,1764465086476,150.0,0.00013842,2]
[395134836,1764465125499,262.85451023,0.00013547,2]
[395134839,1764465137280,500.0,0.00012515,2]
[395134840,1764465137406,500.0,0.00012515,2]
[395134841,1764465137450,500.0,0.00012515,2]
[395134842,1764465137491,500.0,0.00012515,2]
[395134843,1764465137533,500.0,0.00012515,2]
[395134844,1764465137575,500.0,0.00012515,2]
[395134845,1764465137627,452.39040381,0.00012515,2]
[395134847,1764465161591,536.2923893,0.00013699,2]
[395134848,1764465171291,500.0,0.00013699,2]
[395134849,1764465173005,500.0,0.00012515,2]
[395134850,1764465183093,500.0,0.00012515,2]
[395134851,1764465183535,500.0,0.00012515,2]
[395134855,1764465278261,160.0,0.00013,2]
[395134856,1764465290034,500.0,0.00014114,2]
[395134874,1764465459592,500.0,0.00014114,2]
[395134885,1764465629481,500.0,0.00014114,2]
[395134892,1764465703986,9500.01,0.00014137,2]
[395134893,1764465704008,526.85,0.00014137,2]
[395134897,1764465735480,150.0,0.00014121,2]
[395134904,1764465802965,865.18,0.00013699,2]
[395134911,1764465868630,-1081.83572916,0.00014196,2]
[395134917,1764465919058,968.22,0.00014135,2]
[395134927,1764465996386,1500.0,0.00014026,2]
[395134942,1764466091869,389.21,0.00013862,2]
[395134947,1764466099604,195.0,7.888e-05,2]
[395134953,1764466149162,1000.0,0.00025,120]
[395134979,1764466167399,166.66,0.00013699,2]
[395134980,1764466168018,166.66,0.00013847,2]
[395134981,1764466168059,166.66,0.00013996,2]
[395134982,1764466168099,166.66,0.00014144,2]
[395134989,1764466228469,2199.09427084,0.00013771,2]
[395134998,1764466231950,-593.68559843,0.00013771,2]
[395134999,1764466231962,-259.11,0.00013771,2]
[395135000,1764466231974,-7398.50013073,0.00013771,2]
[395135001,1764466231983,-195.0,0.00014196,2]
[395135002,1764466231992,-195.0,0.00014196,2]
[395135003,1764466232002,-250.0,0.00014196,2]
[395135004,1764466232011,-195.0,0.00014196,2]
[395135005,1764466232021,-250.0,0.00014196,2]
[395135006,1764466232031,-204.0,0.00014196,2]
[395135007,1764466232041,-200.0,0.00014245,2]
[395135008,1764466232051,-200.0,0.00014245,2]
[395135009,1764466232061,-166.66,0.00014249,2]
[395135010,1764466232070,-166.66,0.00014292,2]
[395135011,1764466232079,-166.66,0.00014441,2]
[395135012,1764466232089,-1011.49,0.00014452,2]
[395135013,1764466232105,-23127.88768443,0.00014467,2]
[395135014,1764466232115,-196.86,0.0001449,2]
[395135015,1764466232123,-196.86,0.0001449,2]
[395135016,1764466232133,-300.0,0.00014499,2]
[395135017,1764466232142,-1200.0,0.00014499,2]
[395135018,1764466232151,-150.0,0.00014499,2]
[395135019,1764466232163,-26435.67300692,0.000145,2]
[395135020,1764466232182,-293.801,0.000145,2]
[395135021,1764466232210,-498.09735042,0.000145,2]
[395135022,1764466232222,-704.890961,0.000145,2]
[395135023,1764466232235,-467.45030931,0.000145,2]
[395135024,1764466232246,-4210.3142454,0.000145,2]
[395135046,1764466238364,-727389.77312695,0.000145,2]
[395135047,1764466238374,-299.99,0.00014567,2]
[395135048,1764466238383,-1421.94,0.00014567,2]
[395135049,1764466238393,-150.99,0.00014567,2]
[395135050,1764466238402,-3503.3,0.00014567,2]
[395135051,1764466238411,-9999.99,0.00014567,2]
[395135052,1764466238421,-150.99,0.00014567,2]
[395135053,1764466238430,-2954.1,0.00014567,2]
[395135054,1764466238439,-999.99,0.00014567,2]
[395135055,1764466238449,-9999.99,0.00014567,2]
[395135056,1764466238468,-19641.0,0.00014568,2]
[395135057,1764466238478,-252.9310097,0.00014585,2]
[395135058,1764466238487,-292.06215603,0.00014585,2]
[395135059,1764466238497,-500.0,0.00014585,2]
[395135060,1764466238507,-500.0,0.00014585,2]
[395135061,1764466238516,-500.0,0.00014585,2]
[395135062,1764466238526,-500.0,0.00014585,2]
[395135063,1764466238535,-500.0,0.00014585,2]
[395135064,1764466238545,-500.0,0.00014585,2]
[395135065,1764466238555,-500.0,0.00014585,2]
[395135066,1764466238564,-327.15256648,0.00014585,2]
[395135067,1764466238573,-500.0,0.00014585,2]
[395135068,1764466238583,-500.0,0.00014585,2]
[395135069,1764466238592,-500.0,0.00014585,2]
[395135070,1764466238602,-500.0,0.00014585,2]
[395135071,1764466238611,-515.48426376,0.00014585,2]
[395135073,1764466238620,-500.0,0.00014585,2]
[395135074,1764466238629,-500.0,0.00014585,2]
[395135075,1764466238638,-500.0,0.00014585,2]
[395135076,1764466238647,-500.0,0.00014585,2]
[395135077,1764466238657,-500.0,0.00014585,2]
[395135078,1764466238666,-500.0,0.00014585,2]
[395135079,1764466238675,-500.0,0.00014585,2]
[395135080,1764466238685,-500.0,0.00014585,2]
[395135081,1764466238694,-500.0,0.00014585,2]
[395135082,1764466238703,-500.0,0.00014585,2]
[395135083,1764466238711,-500.0,0.00014585,2]
[395135084,1764466238721,-500.0,0.00014585,2]
[395135085,1764466238730,-156.45288665,0.00014585,2]
[395135086,1764466238739,-4776.34380538,0.00014586,2]
[395135087,1764466238748,-26340.48315351,0.000146,2]
[395135088,1764466238757,-500.0,0.00014613,2]
[395135089,1764466238767,-2829.882,0.00014685,2]
[395135090,1764466238776,-182.272,0.00014685,2]
[395135091,1764466238786,-491.91509398,0.00014685,2]
[395135092,1764466238795,-183.99815716,0.00014685,2]
[395135093,1764466238805,-1510.0,0.00014686,2]
[395135094,1764466238814,-54631.9278,0.00014686,2]
[395135095,1764466238823,-235.2676,0.00014686,2]
[395135096,1764466238833,-1000.0,0.00014686,2]
[395135098,1764466238842,-2500.0,0.00014686,2]
[395135100,1764466238851,-166.66,0.00014719,2]
[395135102,1764466238861,-23127.88768438,0.00014737,2]
[395135104,1764466238870,-151.0,0.00014777,2]
[395135106,1764466238880,-151.0,0.00014777,2]
[395135107,1764466238889,-151.0,0.00014777,2]
[395135109,1764466238899,-151.0,0.00014777,2]
[395135111,1764466238909,-151.0,0.00014777,2]
[395135113,1764466238919,-151.0,0.00014777,2]
[395135115,1764466238928,-151.0,0.00014777,2]
[395135117,1764466238938,-151.0,0.00014777,2]
[395135119,1764466238948,-151.0,0.00014777,2]
[395135121,1764466238957,-187.69209584,0.00014777,2]
[395135123,1764466238967,-151.0,0.00014777,2]